lending/lending_fUSD_20250131
["ID","MTS","AMOUNT","RATE_DAILY","PERIOD"]
[351001810,1738281631725,150.0,0.00021747,120]
[351001811,1738281659716,10000.0,0.00023,120]
[351001812,1738281690727,150.0,0.00022768,120]
[351001813,1738281751336,150.0,0.00022474,120]
[351001814,1738281870745,150.0,0.00022678,120]
[351001815,1738281932238,150.0,0.0002247,120]
[351001816,1738282111451,150.0,0.00022529,120]
[351001817,1738282173140,-550.0,0.00013,2]
[351001818,1738282173164,-357.664498,0.00013432,2]
[351001819,1738282173187,-600.0,0.00015,2]
[351001820,1738282173213,-302.6,0.00015466,2]
[351001821,1738282173240,-204.313564,0.00016192,2]
[351001836,1738282231944,-295.686436,0.00016192,2]
[351001837,1738282231954,-151.39101437,0.00016712,2]
[351001838,1738282231967,-24.87898563,0.00016712,2]
[351001839,1738282231977,-1000.0,0.00017339,2]
[351001840,1738282231987,-531.91,0.00017353,2]
[351001841,1738282231997,-1829.4376276,0.0001736,2]
[351001842,1738282232007,-313.23,0.00017451,2]
[351001843,1738282232017,-150.0,0.0001746,2]
[351001844,1738282232028,-18372.36,0.00017461,2]
[351001845,1738282232040,-23923.0,0.000175,2]
[351001846,1738282232050,-453.2,0.0001759,2]
[351001847,1738282232060,-302.6,0.0001773,2]
[351001848,1738282232070,-520.373,0.00017769,2]
[351001849,1738282232081,-169.88,0.00017821,2]
[351001850,1738282232091,-227.73,0.00017849,30]
[351001851,1738282232101,-5558.0,0.000179,3]
[351001852,1738282232112,-21272.42,0.00018,2]
[351001853,1738282232122,-500.0,0.00018068,2]
[351001854,1738282232132,-800.0,0.00018068,2]
[351001855,1738282232142,-157.66,0.00018082,2]
[351001856,1738282232151,-5558.0,0.000182,5]
[351001857,1738282232161,-600.0,0.000183,6]
[351001858,1738282232170,-313.23,0.00018324,2]
[351001859,1738282232180,-1200.0,0.000184,6]
[351001860,1738282232189,-1800.0,0.000185,6]
[351001861,1738282232199,-2400.0,0.000186,6]
[351001862,1738282232208,-2118.27065565,0.000187,2]
[351001863,1738282232218,-171.65678646,0.000187,2]
[351001864,1738282232227,-3000.0,0.000187,6]
[351001865,1738282232236,-266.78194395,0.000187,2]
[351001866,1738282232246,-150.0,0.00018712,2]
[351001867,1738282232255,-150.0,0.00018714,2]
[351001868,1738282232264,-2118.2706556,0.00018722,2]
[351001869,1738282232273,-266.78194391,0.00018722,2]
[351001870,1738282232283,-2118.2706556,0.00018744,2]
[351001871,1738282232293,-266.78194391,0.00018744,2]
[351001872,1738282232303,-150.0,0.00018755,2]
[351001873,1738282232312,-473.2758014,0.00018767,2]
[351001874,1738282232324,-1644.9948542,0.00018767,2]
[351001875,1738282232334,-266.78194391,0.00018767,2]
[351001876,1738282232343,-2118.2706556,0.00018789,2]
[351001877,1738282232353,-266.78194391,0.00018789,2]
[351001878,1738282232363,-500.0,0.00018799,2]
[351001879,1738282232372,-571.06265867,0.00018799,2]
[351001880,1738282232381,-500.0,0.00018799,2]
[351001881,1738282232391,-500.0,0.00018799,2]
[351001882,1738282232400,-230.11807318,0.00018799,2]
[351001883,1738282232410,-373.26,0.000188,2]
[351001884,1738282232419,-11866.71770728,0.000188,2]
[351001885,1738282232449,-13764.12503026,0.000188,2]
[351001886,1738282232460,-1351.99052351,0.000188,2]
[351001887,1738282232471,-1061.03392357,0.000188,2]
[351001888,1738282232482,-781.50070519,0.000188,2]
[351001889,1738282232515,-119848.85797503,0.000188,2]
[351001890,1738282232541,-325.51409,0.000188,2]
[351001891,1738282232553,-302.840001,0.000188,2]
[351001892,1738282232566,-255.97559429,0.000188,2]
[351001893,1738282232580,-1006.1552966,0.000188,2]
[351001894,1738282232599,-255.0,0.000188,2]
[351001895,1738282232610,-276.92713129,0.000188,2]
[351001896,1738282232622,-3023.7,0.000188,2]
[351001897,1738282232646,-738.28,0.000188,2]
[351001898,1738282232681,-672.348205,0.000188,2]
[351001906,1738282237648,-1372.64004705,0.000188,2]
[351001907,1738282237705,-6337.1813674,0.000188,2]
[351001908,1738282237756,-422.97571748,0.000188,2]
[351001909,1738282237810,-51500.00000002,0.000188,2]
[351001910,1738282237917,-515.45359909,0.000188,2]
[351001911,1738282237972,-187293.37976064,0.000188,2]
[351001912,1738282237985,-5160.65800429,0.000188,2]
[351001913,1738282237995,-157.6326575,0.000188,2]
[351001914,1738282238005,-229.52620809,0.000188,2]
[351001915,1738282238016,-240.74842453,0.000188,2]
[351001916,1738282238029,-3000.0,0.000188,2]
[351001917,1738282238049,-422029.97740269,0.000188,2]
[351001918,1738282238059,-600.0,0.000188,6]
[351001919,1738282238069,-2118.2706556,0.00018811,2]
[351001920,1738282238079,-266.78194391,0.00018811,2]
[351001921,1738282238090,-181.0,0.00018831,2]
[351001922,1738282238100,-2118.2706556,0.00018833,2]
[351001923,1738282238111,-266.78194391,0.00018833,2]
[351001924,1738282238121,-2118.2706556,0.00018856,2]
[351001925,1738282238132,-266.78194391,0.00018856,2]
[351001926,1738282238142,-500.45358545,0.00018873,2]
[351001927,1738282238152,-500.0,0.00018873,2]
[351001928,1738282238162,-2118.2706556,0.00018878,2]
[351001929,1738282238172,-266.78194391,0.00018878,2]
[351001930,1738282238182,-150.0,0.00018895,2]
[351001932,1738282238192,-300.0,0.00018899,2]
[351001934,1738282238202,-300.0,0.00018899,2]
[351001936,1738282238211,-300.0,0.00018899,2]
[351001937,1738282238222,-734.59,0.00018899,2]
[351001938,1738282238231,-300.0,0.00018899,2]
[351001940,1738282238242,-151.0,0.00018899,2]
[351001942,1738282238251,-151.0,0.00018899,2]
[351001944,1738282238261,-151.0,0.00018899,2]
[351001946,1738282238271,-151.0,0.00018899,2]
[351001947,1738282238280,-999.0,0.00018899,2]
[351001948,1738282238290,-296.76530391,0.00018899,2]
[351001949,1738282238300,-958126.81240505,0.000189,2]
[351001950,1738282238310,-6431.85596019,0.000189,5]
[351001951,1738282238319,-15858.28,0.000189,2]
[351001952,1738282238329,-1109210.05623844,0.000189,2]
[351001953,1738282238339,-151.0,0.000189,2]
[351001954,1738282238348,-151.0,0.000189,2]
[351001955,1738282238358,-151.0,0.000189,2]
[351001956,1738282238368,-151.0,0.000189,2]
[351001957,1738282238378,-151.0,0.000189,2]
[351001958,1738282238388,-151.0,0.000189,2]
[351001959,1738282238404,-186.705193,0.000189,2]
[351001960,1738282238423,-186.705193,0.000189,2]
[351001961,1738282238432,-151.0,0.000189,2]
[351001962,1738282238442,-151.0,0.000189,2]
[351001963,1738282238451,-151.0,0.000189,2]
[351001964,1738282238461,-151.0,0.000189,2]
[351001965,1738282238470,-151.0,0.000189,2]
[351001966,1738282238481,-151.0,0.000189,2]
[351001967,1738282238491,-239.972555,0.000189,2]
[351001968,1738282238501,-239.972555,0.000189,2]
[351001969,1738282238511,-151.0,0.000189,2]
[351001970,1738282238522,-174.727314,0.000189,2]
[351001971,1738282238532,-151.0,0.000189,2]
[351001972,1738282238543,-248.30065392,0.000189,2]
[351001973,1738282238552,-454.808761,0.000189,2]
[351001974,1738282238561,-151.0,0.000189,2]
[351001975,1738282238570,-151.0,0.000189,2]
[351001976,1738282238581,-454.808761,0.000189,2]
[351001977,1738282238590,-151.0,0.000189,2]
[351001978,1738282238600,-151.0,0.000189,2]
[351001979,1738282238611,-151.0,0.000189,2]
[351001980,1738282238622,-151.0,0.000189,2]
[351001981,1738282238632,-151.0,0.000189,2]
[351001982,1738282238643,-151.0,0.000189,2]
[351001983,1738282238652,-242.124155,0.000189,2]
[351001984,1738282238662,-242.124155,0.000189,2]
[351001985,1738282238676,-151.0,0.000189,2]
[351001986,1738282238686,-2118.2706556,0.000189,2]
[351001987,1738282238695,-151.0,0.000189,2]
[351001988,1738282238706,-198.6457,0.000189,2]
[351001989,1738282238718,-198.6457,0.000189,2]
[351001990,1738282238728,-580.996224,0.000189,2]
[351001991,1738282238738,-580.996224,0.000189,2]
[351001992,1738282238748,-159.103866,0.000189,2]
[351001993,1738282238758,-159.103866,0.000189,2]
[351001994,1738282238769,-1736.76378,0.000189,2]
[351001995,1738282238779,-192.09547679,0.000189,2]
[351001996,1738282238789,-192.09547678,0.000189,2]
[351001997,1738282238799,-1736.76378,0.000189,2]
[351001998,1738282239046,-192.09547678,0.000189,2]
[351001999,1738282239057,-192.09547678,0.000189,2]
[351002000,1738282239067,-192.09547678,0.000189,2]
[351002001,1738282239077,-192.09547678,0.000189,2]
[351002002,1738282239088,-192.09547678,0.000189,2]
[351002003,1738282239097,-192.09547678,0.000189,2]
[351002004,1738282239108,-192.09547678,0.000189,2]
[351002005,1738282239118,-192.09547678,0.000189,2]
[351002006,1738282239128,-151.0,0.000189,2]
[351002007,1738282239137,-151.0,0.000189,2]
[351002008,1738282239148,-600.0,0.000189,6]
[351002009,1738282239157,-151.0,0.000189,2]
[351002010,1738282239167,-703.952544,0.000189,2]
[351002011,1738282239177,-151.0,0.000189,2]
[351002012,1738282239186,-703.952544,0.000189,2]
[351002013,1738282239196,-151.0,0.000189,2]
[351002014,1738282239206,-151.0,0.000189,2]
[351002015,1738282239216,-151.0,0.000189,2]
[351002016,1738282239225,-151.0,0.000189,2]
[351002017,1738282239235,-151.0,0.000189,2]
[351002018,1738282239245,-151.0,0.000189,2]
[351002019,1738282239254,-151.0,0.000189,2]
[351002020,1738282239264,-201.22223952,0.000189,2]
[351002021,1738282239275,-332.127399,0.000189,2]
[351002022,1738282239284,-332.127399,0.000189,2]
[351002023,1738282239294,-151.0,0.000189,2]
[351002024,1738282239303,-332.127399,0.000189,2]
[351002025,1738282239313,-332.127399,0.000189,2]
[351002026,1738282239322,-261.922305,0.000189,2]
[351002027,1738282239334,-261.922305,0.000189,2]
[351002028,1738282239343,-472.10055215,0.000189,2]
[351002029,1738282239353,-261.922305,0.000189,2]
[351002030,1738282239363,-261.922305,0.000189,2]
[351002031,1738282239372,-162.56157246,0.000189,2]
[351002032,1738282239382,-1569.45204854,0.000189,2]
[351002033,1738282239392,-162.56157246,0.000189,2]
[351002034,1738282239402,-266.78194391,0.000189,2]
[351002035,1738282239414,-162.56157246,0.000189,2]
[351002036,1738282239423,-9535.85604153,0.000189,2]
[351002037,1738282239434,-151.0,0.000189,2]
[351002038,1738282239443,-151.0,0.000189,2]
[351002039,1738282239453,-206.956946,0.000189,2]
[351002040,1738282239463,-206.956946,0.000189,2]
[351002041,1738282239473,-206.715434,0.000189,2]
[351002042,1738282239483,-206.956946,0.000189,2]
[351002043,1738282239492,-151.0,0.000189,2]
[351002044,1738282239503,-206.715434,0.000189,2]
[351002045,1738282239512,-206.956946,0.000189,2]
[351002046,1738282239522,-151.0,0.000189,2]
[351002047,1738282239531,-206.715434,0.000189,2]
[351002048,1738282239542,-206.715434,0.000189,2]
[351002049,1738282239551,-3908.0,0.0001892,2]
[351002050,1738282239562,-1006.0,0.0001892,2]
[351002051,1738282239572,-150.0,0.0001892,2]
[351002052,1738282239582,-1107.0,0.0001892,2]
[351002053,1738282239592,-1058.0,0.00018923,2]
[351002054,1738282239602,-150.0,0.00018931,2]
[351002055,1738282239612,-157.63265749,0.00018938,2]
[351002056,1738282239621,-171.65678644,0.00018958,2]
[351002057,1738282239632,-500.0,0.00018973,2]
[351002058,1738282239645,-500.0,0.00018973,2]
[351002059,1738282239655,-190.6049021,0.00018973,2]
[351002060,1738282239666,-500.0,0.00018973,2]
[351002061,1738282239681,-501.10945977,0.00018973,2]
[351002062,1738282239691,-300.0,0.00018998,2]
[351002064,1738282239700,-151.0,0.00018999,2]
[351002065,1738282239710,-151.0,0.00018999,2]
[351002067,1738282239721,-173.76229,0.00018999,2]
[351002068,1738282239730,-151.0,0.00018999,2]
[351002069,1738282239739,-186.705193,0.00018999,2]
[351002070,1738282239749,-186.705193,0.00018999,2]
[351002071,1738282239759,-151.0,0.00018999,2]
[351002072,1738282239769,-151.0,0.00018999,2]
[351002073,1738282239779,-151.0,0.00018999,2]
[351002074,1738282239788,-151.0,0.00018999,2]
[351002076,1738282239797,-151.0,0.00018999,2]
[351002077,1738282239807,-239.972555,0.00018999,2]
[351002078,1738282239817,-239.972555,0.00018999,2]
[351002079,1738282239826,-151.0,0.00018999,2]
[351002080,1738282239837,-454.808761,0.00018999,2]
[351002081,1738282239847,-151.0,0.00018999,2]
[351002082,1738282239857,-454.808761,0.00018999,2]
[351002083,1738282239867,-151.0,0.00018999,2]
[351002084,1738282239877,-184.865912,0.00018999,2]
[351002085,1738282239887,-151.0,0.00018999,2]
[351002086,1738282239897,-151.0,0.00018999,2]
[351002087,1738282239907,-151.0,0.00018999,2]
[351002088,1738282239917,-151.0,0.00018999,2]
[351002089,1738282239926,-242.124155,0.00018999,2]
[351002090,1738282239936,-242.124155,0.00018999,2]
[351002091,1738282239946,-151.0,0.00018999,2]
[351002092,1738282239956,-198.6457,0.00018999,2]
[351002093,1738282239966,-198.6457,0.00018999,2]
[351002094,1738282239976,-580.996224,0.00018999,2]
[351002095,1738282239986,-580.996224,0.00018999,2]
[351002096,1738282239995,-159.103866,0.00018999,2]
[351002097,1738282240004,-159.103866,0.00018999,2]
[351002098,1738282240014,-1736.76378,0.00018999,2]
[351002099,1738282240024,-1736.76378,0.00018999,2]
[351002100,1738282240033,-151.0,0.00018999,2]
[351002101,1738282240043,-151.0,0.00018999,2]
[351002102,1738282240052,-151.0,0.00018999,2]
[351002103,1738282240062,-703.952544,0.00018999,2]
[351002104,1738282240071,-151.0,0.00018999,2]
[351002105,1738282240081,-703.952544,0.00018999,2]
[351002106,1738282240091,-151.0,0.00018999,2]
[351002107,1738282240101,-151.0,0.00018999,2]
[351002108,1738282240111,-207.222793,0.00018999,2]
[351002109,1738282240121,-332.127399,0.00018999,2]
[351002110,1738282240130,-151.0,0.00018999,2]
[351002111,1738282240141,-332.127399,0.00018999,2]
[351002112,1738282240155,-261.922305,0.00018999,2]
[351002113,1738282240165,-261.922305,0.00018999,2]
[351002114,1738282240175,-151.0,0.00018999,2]
[351002115,1738282240185,-206.956946,0.00018999,2]
[351002116,1738282240195,-206.715434,0.00018999,2]
[351002117,1738282240205,-206.956946,0.00018999,2]
[351002118,1738282240215,-151.0,0.00018999,2]
[351002119,1738282240225,-206.715434,0.00018999,2]
[351002120,1738282240235,-300.0,0.00018999,2]
[351002122,1738282240245,-91342.12226899,0.00018999,2]
[351002124,1738282240254,-678649.16017897,0.00019,2]
[351002126,1738282240935,-607.36,0.00019,2]
[351002127,1738282240947,-3408.2034,0.00019,2]
[351002128,1738282240959,-9102.58844109,0.00019,2]
[351002129,1738282240971,-422.25836631,0.00019,2]
[351002130,1738282240995,-69722.14984416,0.00019,2]
[351002131,1738282241007,-79252.0,0.00019,2]
[351002132,1738282241018,-552.52590415,0.00019,2]
[351002133,1738282241051,-25991.07000013,0.00019,2]
[351002134,1738282241062,-1061.31826623,0.00019,2]
[351002135,1738282241074,-1078.2000003,0.00019,2]
[351002136,1738282241087,-762.79624905,0.00019,2]
[351002137,1738282241099,-1068.85270676,0.00019,2]
[351002138,1738282241124,-4414926.06892083,0.00019,2]
[351002139,1738282241133,-184788.72172338,0.00019,2]
[351002140,1738282241143,-18210.73,0.00019,3]
[351002141,1738282241153,-2213.0,0.00019,2]
[351002142,1738282241162,-151.0,0.00019,2]
[351002143,1738282241172,-151.0,0.00019,2]
[351002144,1738282241182,-151.0,0.00019,2]
[351002145,1738282241191,-301.03138,0.00019,2]
[351002146,1738282241201,-186.705193,0.00019,2]
[351002147,1738282241210,-186.705193,0.00019,2]
[351002148,1738282241220,-186.705193,0.00019,2]
[351002149,1738282241230,-186.705193,0.00019,2]
[351002150,1738282241240,-200.292835,0.00019,2]
[351002151,1738282241250,-151.0,0.00019,2]
[351002152,1738282241259,-151.0,0.00019,2]
[351002153,1738282241270,-239.972555,0.00019,2]
[351002154,1738282241279,-239.972555,0.00019,2]
[351002155,1738282241289,-239.972555,0.00019,2]
[351002156,1738282241299,-239.972555,0.00019,2]
[351002157,1738282241309,-151.0,0.00019,2]
[351002158,1738282241319,-151.0,0.00019,2]
[351002159,1738282241329,-454.808761,0.00019,2]
[351002160,1738282241339,-454.808761,0.00019,2]
[351002161,1738282241348,-151.0,0.00019,2]
[351002162,1738282241358,-151.0,0.00019,2]
[351002163,1738282241367,-454.808761,0.00019,2]
[351002164,1738282241376,-454.808761,0.00019,2]
[351002165,1738282241386,-151.0,0.00019,2]
[351002166,1738282241396,-151.0,0.00019,2]
[351002167,1738282241407,-151.0,0.00019,2]
[351002168,1738282241416,-151.0,0.00019,2]
[351002169,1738282241426,-200.191738,0.00019,2]
[351002170,1738282241435,-151.0,0.00019,2]
[351002171,1738282241445,-151.0,0.00019,2]
[351002172,1738282241454,-242.124155,0.00019,2]
[351002173,1738282241464,-242.124155,0.00019,2]
[351002174,1738282241473,-242.124155,0.00019,2]
[351002175,1738282241483,-242.124155,0.00019,2]
[351002176,1738282241492,-151.0,0.00019,2]
[351002177,1738282241502,-151.0,0.00019,2]
[351002178,1738282241511,-198.6457,0.00019,2]
[351002179,1738282241522,-198.6457,0.00019,2]
[351002180,1738282241531,-5017.0,0.00019,2]
[351002181,1738282241541,-198.6457,0.00019,2]
[351002182,1738282241551,-198.6457,0.00019,2]
[351002183,1738282241560,-580.996224,0.00019,2]
[351002184,1738282241570,-580.996224,0.00019,2]
[351002185,1738282241579,-580.996224,0.00019,2]
[351002186,1738282241588,-580.996224,0.00019,2]
[351002187,1738282241598,-159.103866,0.00019,2]
[351002188,1738282241607,-159.103866,0.00019,2]
[351002189,1738282241617,-159.103866,0.00019,2]
[351002190,1738282241627,-159.103866,0.00019,2]
[351002191,1738282241636,-1736.76378,0.00019,2]
[351002192,1738282241646,-1736.76378,0.00019,2]
[351002193,1738282241655,-1736.76378,0.00019,2]
[351002194,1738282241665,-1736.76378,0.00019,2]
[351002195,1738282241678,-151.0,0.00019,2]
[351002196,1738282241687,-151.0,0.00019,2]
[351002197,1738282241696,-151.0,0.00019,2]
[351002198,1738282241707,-151.0,0.00019,2]
[351002199,1738282241717,-151.0,0.00019,2]
[351002200,1738282241727,-151.0,0.00019,2]
[351002201,1738282241738,-703.952544,0.00019,2]
[351002202,1738282241748,-703.952544,0.00019,2]
[351002203,1738282241759,-151.0,0.00019,2]
[351002204,1738282241768,-151.0,0.00019,2]
[351002205,1738282241778,-703.952544,0.00019,2]
[351002206,1738282241789,-703.952544,0.00019,2]
[351002207,1738282241798,-151.0,0.00019,2]
[351002208,1738282241808,-151.0,0.00019,2]
[351002209,1738282241817,-151.0,0.00019,2]
[351002210,1738282241827,-151.0,0.00019,2]
[351002211,1738282241838,-332.127399,0.00019,2]
[351002212,1738282241848,-332.127399,0.00019,2]
[351002213,1738282241858,-151.0,0.00019,2]
[351002214,1738282241867,-151.0,0.00019,2]
[351002215,1738282241877,-332.127399,0.00019,2]
[351002216,1738282241887,-332.127399,0.00019,2]
[351002217,1738282241898,-261.922305,0.00019,2]
[351002218,1738282241907,-261.922305,0.00019,2]
[351002219,1738282241917,-261.922305,0.00019,2]
[351002220,1738282241927,-261.922305,0.00019,2]
[351002221,1738282241936,-151.0,0.00019,2]
[351002222,1738282241947,-206.956946,0.00019,2]
[351002223,1738282241957,-206.956946,0.00019,2]
[351002224,1738282241966,-151.0,0.00019,2]
[351002225,1738282241975,-206.715434,0.00019,2]
[351002226,1738282241985,-206.956946,0.00019,2]
[351002227,1738282241994,-151.0,0.00019,2]
[351002228,1738282242004,-206.715434,0.00019,2]
[351002229,1738282242013,-151.0,0.00019,2]
[351002230,1738282242022,-206.956946,0.00019,2]
[351002231,1738282242032,-206.715434,0.00019,2]
[351002232,1738282242041,-206.715434,0.00019,2]
[351002233,1738282242051,-240.74842453,0.00019023,2]
[351002234,1738282242061,-990.0,0.00019031,2]
[351002235,1738282242071,-734.59,0.00019036,2]
[351002236,1738282242080,-150.0,0.00019049,2]
[351002237,1738282242090,-157.63265749,0.00019077,2]
[351002238,1738282242099,-150.0,0.00019098,2]
[351002239,1738282242109,-155.52105124,0.00019123,2]
[351002240,1738282242119,-500.0,0.00019161,2]
[351002241,1738282242373,-800.0,0.00019164,2]
[351002242,1738282242386,-500.0,0.00019173,2]
[351002243,1738282242396,-500.0,0.00019173,2]
[351002244,1738282242407,-500.0,0.00019173,2]
[351002245,1738282242417,-500.0,0.00019173,2]
[351002246,1738282242427,-734.59,0.00019173,2]
[351002247,1738282242437,-300.0,0.00019177,2]
[351002248,1738282242446,-514.04113846,0.00019178,2]
[351002249,1738282242455,-275.479137,0.00019178,2]
[351002250,1738282242465,-850.993016,0.00019178,2]
[351002251,1738282242475,-503.73349679,0.00019178,2]
[351002252,1738282242485,-500.0,0.00019178,2]
[351002254,1738282242494,-158.632231,0.00019178,2]
[351002255,1738282242505,-155.847334,0.00019178,2]
[351002256,1738282242515,-1616.204201,0.00019178,2]
[351002257,1738282242524,-500.0,0.00019178,2]
[351002258,1738282242534,-151.0,0.00019178,2]
[351002259,1738282242543,-512.21364045,0.00019178,2]
[351002260,1738282242553,-240.592072,0.00019178,2]
[351002262,1738282242563,-500.0,0.00019178,2]
[351002264,1738282242574,-934.69,0.00019178,2]
[351002266,1738282242583,-1224.98,0.00019178,2]
[351002268,1738282242593,-500.0,0.00019178,2]
[351002270,1738282242603,-500.0,0.00019178,2]
[351002272,1738282242614,-730.27,0.00019178,2]
[351002274,1738282242624,-500.0,0.00019178,2]
[351002276,1738282242634,-1235.83,0.00019178,2]
[351002277,1738282242646,-500.0,0.00019178,2]
[351002278,1738282242655,-1029.32,0.00019178,2]
[351002279,1738282242663,-500.0,0.00019178,2]
[351002280,1738282242675,-234.26249016,0.00019178,2]
[351002281,1738282242685,-500.0,0.00019178,2]
[351002283,1738282242694,-500.0,0.00019178,2]
[351002285,1738282242703,-500.0,0.00019178,2]
[351002287,1738282242713,-500.0,0.00019178,2]
[351002288,1738282242723,-986.18,0.00019178,2]
[351002289,1738282242732,-500.0,0.00019178,2]
[351002293,1738282242742,-500.0,0.00019178,2]
[351002295,1738282242753,-766.7,0.00019178,2]
[351002297,1738282242762,-778.04,0.00019178,2]
[351002299,1738282242771,-500.0,0.00019178,2]
[351002301,1738282242780,-500.0,0.00019178,2]
[351002303,1738282242790,-500.0,0.00019178,2]
[351002305,1738282242799,-500.0,0.00019178,2]
[351002306,1738282242809,-384.83437417,0.00019178,2]
[351002307,1738282242819,-500.0,0.00019178,2]
[351002308,1738282242829,-500.0,0.00019178,2]
[351002309,1738282242839,-500.0,0.00019178,2]
[351002310,1738282242848,-500.0,0.00019178,2]
[351002311,1738282242858,-872.39,0.00019178,2]
[351002312,1738282242868,-500.0,0.00019178,2]
[351002313,1738282242878,-500.0,0.00019178,2]
[351002314,1738282242887,-500.0,0.00019178,2]
[351002315,1738282242896,-500.0,0.00019178,2]
[351002316,1738282242906,-503.41781629,0.00019178,2]
[351002317,1738282242915,-1043.16,0.00019178,2]
[351002318,1738282242924,-652.48,0.00019178,2]
[351002319,1738282242934,-500.0,0.00019178,2]
[351002320,1738282242943,-1066.89,0.00019178,2]
[351002321,1738282242952,-500.0,0.00019178,2]
[351002322,1738282242962,-500.0,0.00019178,2]
[351002323,1738282242972,-500.0,0.00019178,2]
[351002324,1738282242982,-615.14,0.00019178,2]
[351002325,1738282242991,-500.0,0.00019178,2]
[351002326,1738282243001,-500.0,0.00019178,2]
[351002327,1738282243011,-640.21,0.00019178,2]
[351002328,1738282243022,-659.89,0.00019178,2]
[351002329,1738282243032,-530.34,0.00019178,2]
[351002330,1738282243042,-500.0,0.00019178,2]
[351002331,1738282243052,-500.0,0.00019178,2]
[351002332,1738282243063,-500.0,0.00019178,2]
[351002333,1738282243072,-500.0,0.00019178,2]
[351002334,1738282243082,-500.0,0.00019178,2]
[351002335,1738282243091,-500.0,0.00019178,2]
[351002336,1738282243100,-500.0,0.00019178,2]
[351002337,1738282243109,-500.0,0.00019178,2]
[351002338,1738282243119,-415.34631917,0.00019178,2]
[351002339,1738282243128,-500.0,0.00019178,2]
[351002340,1738282243138,-544.17,0.00019178,2]
[351002342,1738282243147,-1346.25,0.00019178,2]
[351002344,1738282243156,-500.0,0.00019178,2]
[351002346,1738282243165,-500.0,0.00019178,2]
[351002348,1738282243175,-500.0,0.00019178,2]
[351002350,1738282243184,-500.0,0.00019178,2]
[351002352,1738282243193,-500.0,0.00019178,2]
[351002354,1738282243202,-500.0,0.00019178,2]
[351002356,1738282243211,-500.0,0.00019178,2]
[351002358,1738282243221,-500.0,0.00019178,2]
[351002360,1738282243230,-500.0,0.00019178,2]
[351002362,1738282243240,-500.0,0.00019178,2]
[351002364,1738282243249,-186.705193,0.00019178,2]
[351002366,1738282243258,-186.705193,0.00019178,2]
[351002368,1738282243268,-186.705193,0.00019178,2]
[351002370,1738282243278,-186.705193,0.00019178,2]
[351002372,1738282243288,-186.705193,0.00019178,2]
[351002374,1738282243297,-500.0,0.00019178,2]
[351002376,1738282243307,-186.705193,0.00019178,2]
[351002379,1738282243317,-500.0,0.00019178,2]
[351002381,1738282243327,-186.705193,0.00019178,2]
[351002383,1738282243338,-186.705193,0.00019178,2]
[351002385,1738282243347,-186.705193,0.00019178,2]
[351002387,1738282243357,-186.705193,0.00019178,2]
[351002389,1738282243366,-186.705193,0.00019178,2]